fUST/lending_fUST_20251206
["ID","MTS","AMOUNT","RATE_DAILY","PERIOD"]
[396429593,1764964351718,-596.14,0.00020273,2]
[396429594,1764964351727,-766.62,0.00020273,2]
[396429595,1764964351737,-677.48,0.00020273,2]
[396429596,1764964351746,-710.03,0.00020273,2]
[396429597,1764964351756,-978.11,0.00020273,2]
[396429598,1764964351766,-616.53425229,0.00020273,2]
[396429599,1764964351778,-950.77,0.00020273,2]
[396429600,1764964351788,-2195.96,0.00020273,2]
[396429601,1764964351797,-418.74665392,0.00020273,2]
[396429602,1764964351807,-831.34,0.00020273,2]
[396429603,1764964351816,-500.0,0.00020273,2]
[396429604,1764964351825,-609.85,0.00020273,2]
[396429605,1764964351835,-1164.68,0.00020273,2]
[396429606,1764964351843,-500.0,0.00020273,2]
[396429607,1764964351853,-500.0,0.00020273,2]
[396429608,1764964351862,-768.78,0.00020273,2]
[396429609,1764964351871,-609.15,0.00020273,2]
[396429610,1764964351880,-500.0,0.00020273,2]
[396429611,1764964351890,-1330.04,0.00020273,2]
[396429612,1764964351899,-913.97,0.00020273,2]
[396429613,1764964351908,-500.0,0.00020273,2]
[396429614,1764964351917,-500.0,0.00020273,2]
[396429615,1764964351926,-738.1,0.00020273,2]
[396429616,1764964351936,-1071.4,0.00020273,2]
[396429617,1764964351945,-1543.99,0.00020273,2]
[396429618,1764964351954,-1862.41,0.00020273,2]
[396429619,1764964351963,-500.0,0.00020273,2]
[396429620,1764964351972,-939.06,0.00020273,2]
[396429621,1764964351981,-1733.31,0.00020273,2]
[396429622,1764964351991,-2719.16,0.00020273,2]
[396429623,1764964352000,-826.15,0.00020273,2]
[396429624,1764964352009,-500.0,0.00020273,2]
[396429625,1764964352020,-500.0,0.00020273,2]
[396429626,1764964352029,-1078.39,0.00020273,2]
[396429627,1764964352039,-708.58,0.00020273,2]
[396429628,1764964352048,-1771.78,0.00020273,2]
[396429629,1764964352056,-500.0,0.00020273,2]
[396429630,1764964352065,-225.07213068,0.00020273,2]
[396429631,1764964352075,-500.0,0.00020273,2]
[396429632,1764964352085,-672.42,0.00020273,2]
[396429633,1764964352095,-874.07,0.00020273,2]
[396429634,1764964352106,-611.92,0.00020273,2]
[396429635,1764964352115,-2821.54,0.00020273,2]
[396429636,1764964352124,-500.0,0.00020273,2]
[396429637,1764964352133,-500.0,0.00020273,2]
[396429638,1764964352142,-971.51,0.00020273,2]
[396429639,1764964352151,-906.08,0.00020273,2]
[396429640,1764964352161,-636.11,0.00020273,2]
[396429641,1764964352170,-500.0,0.00020273,2]
[396429642,1764964352179,-571.85,0.00020273,2]
[396429643,1764964352189,-500.0,0.00020273,2]
[396429644,1764964352199,-1069.86,0.00020273,2]
[396429645,1764964352208,-1462.76,0.00020273,2]
[396429646,1764964352217,-502.82,0.00020273,2]
[396429647,1764964352226,-519.2039928,0.00020273,2]
[396429648,1764964352236,-2534.3,0.00020273,2]
[396429649,1764964352245,-500.0,0.00020273,2]
[396429650,1764964352254,-500.0,0.00020273,2]
[396429651,1764964352263,-500.0,0.00020273,2]
[396429652,1764964352273,-500.0,0.00020273,2]
[396429653,1764964352282,-647.83,0.00020273,2]
[396429654,1764964352292,-1092.74,0.00020273,2]
[396429655,1764964352301,-500.0,0.00020273,2]
[396429656,1764964352310,-1405.79,0.00020273,2]
[396429657,1764964352320,-1078.91,0.00020273,2]
[396429658,1764964352329,-500.0,0.00020273,2]
[396429659,1764964352339,-1311.8,0.00020273,2]
[396429660,1764964352348,-1734.17,0.00020273,2]
[396429661,1764964352357,-698.12,0.00020273,2]
[396429662,1764964352366,-1866.07,0.00020273,2]
[396429663,1764964352375,-500.0,0.00020273,2]
[396429664,1764964352384,-500.0,0.00020273,2]
[396429665,1764964352393,-1534.72,0.00020273,2]
[396429666,1764964352403,-524.96,0.00020273,2]
[396429667,1764964352413,-2060.56,0.00020273,2]
[396429668,1764964352423,-500.0,0.00020273,2]
[396429669,1764964352433,-701.23,0.00020273,2]
[396429670,1764964352445,-673.73,0.00020273,2]
[396429671,1764964352455,-1698.62,0.00020273,2]
[396429672,1764964352464,-658.93,0.00020273,2]
[396429673,1764964352474,-742.38,0.00020273,2]
[396429674,1764964352483,-747.63,0.00020273,2]
[396429675,1764964352493,-667.01,0.00020273,2]
[396429676,1764964352501,-488.61483807,0.00020273,2]
[396429677,1764964352510,-721.72,0.00020273,2]
[396429678,1764964352520,-1151.69,0.00020273,2]
[396429679,1764964352529,-991.55,0.00020273,2]
[396429680,1764964352538,-500.0,0.00020273,2]
[396429681,1764964352548,-596.6,0.00020273,2]
[396429682,1764964352557,-1963.89,0.00020273,2]
[396429683,1764964352567,-2056.09,0.00020273,2]
[396429684,1764964352577,-1932.03,0.00020273,2]
[396429685,1764964352586,-1925.2,0.00020273,2]
[396429686,1764964352595,-694.04,0.00020273,2]
[396429687,1764964352605,-1279.51,0.00020273,2]
[396429688,1764964352614,-552.82,0.00020273,2]
[396429689,1764964352623,-1066.32,0.00020273,2]
[396429690,1764964352633,-500.0,0.00020273,2]
[396429691,1764964352643,-1282.6,0.00020273,2]
[396429692,1764964352652,-1077.48,0.00020273,2]
[396429693,1764964352662,-1056.93,0.00020273,2]
[396429694,1764964352671,-1405.18,0.00020273,2]
[396429695,1764964352681,-798.61,0.00020273,2]
[396429696,1764964352691,-500.0,0.00020273,2]
[396429697,1764964352700,-1114.7,0.00020273,2]
[396429698,1764964352709,-867.37,0.00020273,2]
[396429699,1764964352719,-500.0,0.00020273,2]
[396429700,1764964352728,-773.03,0.00020273,2]
[396429701,1764964352738,-2394.89,0.00020273,2]
[396429702,1764964352747,-500.4,0.00020273,2]
[396429703,1764964352756,-500.0,0.00020273,2]
[396429704,1764964352765,-1140.55,0.00020273,2]
[396429705,1764964352774,-500.0,0.00020273,2]
[396429706,1764964352784,-753.55,0.00020273,2]
[396429707,1764964352794,-500.0,0.00020273,2]
[396429708,1764964352803,-1160.45,0.00020273,2]
[396429709,1764964352812,-507.01,0.00020273,2]
[396429710,1764964352822,-801.76,0.00020273,2]
[396429711,1764964352831,-542.43,0.00020273,2]
[396429712,1764964352841,-2713.85,0.00020273,2]
[396429713,1764964352850,-500.0,0.00020273,2]
[396429714,1764964352859,-914.46,0.00020273,2]
[396429715,1764964352871,-500.0,0.00020273,2]
[396429716,1764964352881,-4419.03,0.00020273,2]
[396429717,1764964352891,-526.41,0.00020273,2]
[396429718,1764964352900,-588.91,0.00020273,2]
[396429719,1764964352909,-981.61,0.00020273,2]
[396429720,1764964352918,-1146.46,0.00020273,2]
[396429721,1764964352926,-562.03,0.00020273,2]
[396429722,1764964352936,-1195.63,0.00020273,2]
[396429723,1764964352946,-500.0,0.00020273,2]
[396429724,1764964352956,-2202.96,0.00020273,2]
[396429725,1764964352965,-500.0,0.00020273,2]
[396429726,1764964352975,-769.64,0.00020273,2]
[396429727,1764964352985,-813.86,0.00020273,2]
[396429728,1764964352995,-530.06,0.00020273,2]
[396429729,1764964353005,-500.0,0.00020273,2]
[396429730,1764964353014,-708.5,0.00020273,2]
[396429731,1764964353025,-2092.31,0.00020273,2]
[396429732,1764964353034,-500.0,0.00020273,2]
[396429733,1764964353043,-528.45,0.00020273,2]
[396429734,1764964353053,-642.1235582,0.00020273,2]
[396429735,1764964353063,-532.79,0.00020273,2]
[396429736,1764964353072,-1131.46,0.00020273,2]
[396429737,1764964353081,-1131.9,0.00020273,2]
[396429738,1764964353091,-500.0,0.00020273,2]
[396429739,1764964353101,-608.86,0.00020273,2]
[396429740,1764964353111,-880.35,0.00020273,2]
[396429741,1764964353120,-784.6,0.00020273,2]
[396429742,1764964353130,-224.16601771,0.00020273,2]
[396429743,1764964353139,-589.81,0.00020273,2]
[396429744,1764964353148,-332.24558115,0.00020273,2]
[396429745,1764964353158,-500.0,0.00020273,2]
[396429746,1764964353168,-537.52,0.00020273,2]
[396429747,1764964353177,-1014.04,0.00020273,2]
[396429748,1764964353186,-2220.46,0.00020273,2]
[396429749,1764964353196,-2190.66,0.00020273,2]
[396429750,1764964353206,-1158.75,0.00020273,2]
[396429751,1764964353215,-681.06,0.00020273,2]
[396429752,1764964353226,-500.0,0.00020273,2]
[396429753,1764964353235,-2115.78,0.00020273,2]
[396429754,1764964353246,-500.0,0.00020273,2]
[396429755,1764964353256,-766.35,0.00020273,2]
[396429756,1764964353266,-966.12,0.00020273,2]
[396429757,1764964353275,-914.28,0.00020273,2]
[396429758,1764964353284,-982.55,0.00020273,2]
[396429759,1764964353293,-500.0,0.00020273,2]
[396429760,1764964353302,-936.35,0.00020273,2]
[396429761,1764964353311,-500.0,0.00020273,2]
[396429762,1764964353320,-500.0,0.00020273,2]
[396429763,1764964353329,-500.0,0.00020273,2]
[396429764,1764964353338,-202.62082457,0.00020273,2]
[396429765,1764964353347,-749.63,0.00020273,2]
[396429766,1764964353356,-1076.77,0.00020273,2]
[396429767,1764964353365,-1641.15,0.00020273,2]
[396429768,1764964353374,-500.0,0.00020273,2]
[396429769,1764964353383,-500.0,0.00020273,2]
[396429770,1764964353393,-603.68,0.00020273,2]
[396429771,1764964353402,-698.96,0.00020273,2]
[396429772,1764964353412,-1666.18,0.00020273,2]
[396429773,1764964353421,-671.97,0.00020273,2]
[396429774,1764964353430,-502.19,0.00020273,2]
[396429775,1764964353439,-2087.17,0.00020273,2]
[396429776,1764964353448,-500.0,0.00020273,2]
[396429777,1764964353457,-500.0,0.00020273,2]
[396429778,1764964353473,-516.65,0.00020273,2]
[396429779,1764964353483,-500.0,0.00020273,2]
[396429780,1764964353492,-2037.83,0.00020273,2]
[396429781,1764964353502,-501.13,0.00020273,2]
[396429782,1764964353511,-500.0,0.00020273,2]
[396429783,1764964353520,-571.62,0.00020273,2]
[396429784,1764964353531,-1758.23,0.00020273,2]
[396429785,1764964353540,-4101.23,0.00020273,2]
[396429786,1764964353550,-1128.95,0.00020273,2]
[396429787,1764964353562,-2336.08,0.00020273,2]
[396429788,1764964353572,-735.18,0.00020273,2]
[396429789,1764964353581,-656.91,0.00020273,2]
[396429790,1764964353590,-942.22,0.00020273,2]
[396429791,1764964353599,-606.67,0.00020273,2]
[396429792,1764964353609,-866.26,0.00020273,2]
[396429793,1764964353618,-500.13,0.00020273,2]
[396429794,1764964353627,-294.12477745,0.00020273,2]
[396429795,1764964353637,-475.40764716,0.00020273,2]
[396429796,1764964353649,-748.38,0.00020273,2]
[396429797,1764964353658,-784.77,0.00020273,2]
[396429798,1764964353669,-500.0,0.00020273,2]
[396429799,1764964353679,-3000.65,0.00020273,2]
[396429800,1764964353689,-632.24,0.00020273,2]
[396429801,1764964353698,-525.35,0.00020273,2]
[396429802,1764964353708,-500.0,0.00020273,2]
[396429803,1764964353718,-734.19,0.00020273,2]
[396429804,1764964353729,-500.0,0.00020273,2]
[396429805,1764964353739,-500.0,0.00020273,2]
[396429806,1764964353748,-1121.55,0.00020273,2]
[396429807,1764964353758,-4195.91,0.00020273,2]
[396429808,1764964353768,-500.0,0.00020273,2]
[396429809,1764964353779,-1169.87,0.00020273,2]
[396429810,1764964353788,-592.88527582,0.00020273,2]
[396429811,1764964353798,-500.0,0.00020273,2]
[396429812,1764964353809,-1721.78,0.00020273,2]
[396429813,1764964353819,-797.93,0.00020273,2]
[396429814,1764964353828,-500.0,0.00020273,2]
[396429815,1764964353838,-3352.24,0.00020273,2]
[396429816,1764964353847,-701.25,0.00020273,2]
[396429817,1764964353857,-1865.02,0.00020273,2]
[396429818,1764964353867,-547.35,0.00020273,2]
[396429819,1764964353876,-1140.86,0.00020273,2]
[396429820,1764964353886,-1061.3,0.00020273,2]
[396429821,1764964353896,-581.3,0.00020273,2]
[396429822,1764964353905,-561.53,0.00020273,2]
[396429823,1764964353915,-1248.52,0.00020273,2]
[396429824,1764964353925,-565.64,0.00020273,2]
[396429825,1764964353935,-1569.73,0.00020273,2]
[396429826,1764964353944,-1818.55,0.00020273,2]
[396429827,1764964353954,-522.2,0.00020273,2]
[396429828,1764964353963,-875.06,0.00020273,2]
[396429829,1764964353973,-500.0,0.00020273,2]
[396429830,1764964353983,-1114.54,0.00020273,2]
[396429831,1764964353992,-500.0,0.00020273,2]
[396429832,1764964354002,-500.0,0.00020273,2]
[396429833,1764964354011,-1202.31,0.00020273,2]
[396429834,1764964354025,-1019.58,0.00020273,2]
[396429835,1764964354034,-1283.59,0.00020273,2]
[396429836,1764964354044,-1200.75,0.00020273,2]
[396429837,1764964354155,-506.37,0.00020273,2]
[396429838,1764964354165,-500.0,0.00020273,2]
[396429839,1764964354175,-1231.58,0.00020273,2]
[396429840,1764964354185,-654.39,0.00020273,2]
[396429841,1764964354194,-506.68,0.00020273,2]
[396429842,1764964354204,-500.0,0.00020273,2]
[396429843,1764964354213,-500.0,0.00020273,2]
[396429844,1764964354222,-1113.91,0.00020273,2]
[396429845,1764964354232,-663.62,0.00020273,2]
[396429846,1764964354242,-753.47,0.00020273,2]
[396429847,1764964354252,-1445.18,0.00020273,2]
[396429848,1764964354261,-500.0,0.00020273,2]
[396429849,1764964354272,-500.0,0.00020273,2]
[396429850,1764964354283,-780.5,0.00020273,2]
[396429851,1764964354292,-889.08,0.00020273,2]
[396429852,1764964354302,-500.0,0.00020273,2]
[396429853,1764964354312,-500.0,0.00020273,2]
[396429854,1764964354321,-2835.2,0.00020273,2]
[396429855,1764964354331,-1729.46,0.00020273,2]
[396429856,1764964354340,-1979.46,0.00020273,2]
[396429857,1764964354350,-575.86,0.00020273,2]
[396429858,1764964354360,-632.50756327,0.00020273,2]
[396429859,1764964354370,-1316.03,0.00020273,2]
[396429860,1764964354379,-1835.34,0.00020273,2]
[396429861,1764964354388,-908.87,0.00020273,2]
[396429862,1764964354399,-653.14,0.00020273,2]
[396429863,1764964354408,-557.4,0.00020273,2]
[396429864,1764964354418,-500.0,0.00020273,2]
[396429865,1764964354427,-1274.81,0.00020273,2]
[396429866,1764964354437,-978.78,0.00020273,2]
[396429867,1764964354447,-496.84809073,0.00020273,2]
[396429868,1764964354457,-500.0,0.00020273,2]
[396429869,1764964354467,-1825.48,0.00020273,2]
[396429870,1764964354476,-1459.61,0.00020273,2]
[396429871,1764964354486,-500.0,0.00020273,2]
[396429872,1764964354495,-1362.88,0.00020273,2]
[396429873,1764964354504,-2330.6,0.00020273,2]
[396429874,1764964354513,-2129.96,0.00020273,2]
[396429875,1764964354522,-188.04679734,0.00020273,2]
[396429876,1764964354531,-500.0,0.00020273,2]
[396429877,1764964354540,-664.95,0.00020273,2]
[396429878,1764964354549,-1189.18,0.00020273,2]
[396429879,1764964354558,-500.0,0.00020273,2]
[396429880,1764964354567,-989.95,0.00020273,2]
[396429881,1764964354577,-1775.43,0.00020273,2]
[396429882,1764964354587,-1334.27,0.00020273,2]
[396429883,1764964354597,-500.0,0.00020273,2]
[396429884,1764964354607,-500.0,0.00020273,2]
[396429885,1764964354617,-431.02086457,0.00020273,2]
[396429886,1764964354627,-796.25,0.00020273,2]
[396429887,1764964354637,-500.0,0.00020273,2]
[396429888,1764964354647,-4147.96,0.00020273,2]
[396429889,1764964354657,-500.0,0.00020273,2]
[396429890,1764964354668,-677.16,0.00020273,2]
[396429891,1764964354678,-3508.67,0.00020273,2]
[396429892,1764964354688,-3856.98,0.00020273,2]
[396429893,1764964354698,-1405.37,0.00020273,2]
[396429894,1764964354708,-500.0,0.00020273,2]
[396429895,1764964354716,-8546.16,0.00020273,2]
[396429896,1764964354725,-595.52,0.00020273,2]
[396429897,1764964354734,-2012.27,0.00020273,2]
[396429898,1764964354744,-869.37,0.00020273,2]
[396429899,1764964354754,-2862.43,0.00020273,2]
[396429900,1764964354764,-760.14,0.00020273,2]
[396429901,1764964354774,-500.0,0.00020273,2]
[396429902,1764964354783,-500.0,0.00020273,2]
[396429903,1764964354793,-1260.61,0.00020273,2]
[396429904,1764964354803,-27168.59,0.00020273,2]
[396429905,1764964354812,-2573.74,0.00020273,2]
[396429906,1764964354822,-500.0,0.00020273,2]
[396429907,1764964354831,-534.34473586,0.00020273,2]
[396429908,1764964354840,-1519.74,0.00020273,2]
[396429909,1764964354850,-3739.24,0.00020273,2]
[396429910,1764964354860,-837.97,0.00020273,2]
[396429911,1764964354869,-2210.97,0.00020273,2]
[396429912,1764964354880,-879.68,0.00020273,2]
[396429913,1764964354890,-934.83,0.00020273,2]
[396429914,1764964354899,-1534.0,0.00020273,2]
[396429915,1764964354909,-613.38,0.00020273,2]
[396429916,1764964354918,-1145.34,0.00020273,2]
[396429917,1764964354928,-7737.29,0.00020273,2]
[396429918,1764964354937,-2897.13,0.00020273,2]
[396429919,1764964354948,-2245.52,0.00020273,2]
[396429920,1764964354957,-3989.26,0.00020273,2]
[396429921,1764964354967,-1590.89,0.00020273,2]
[396429922,1764964354976,-4880.82,0.00020273,2]
[396429923,1764964354985,-500.0,0.00020273,2]
[396429924,1764964354995,-500.0,0.00020273,2]
[396429925,1764964355004,-2037.18,0.00020273,2]
[396429926,1764964355013,-500.0,0.00020273,2]
[396429927,1764964355026,-1939.29,0.00020273,2]
[396429928,1764964355036,-500.0,0.00020273,2]
[396429929,1764964355047,-603.68,0.00020273,2]
[396429930,1764964355056,-586.39,0.00020273,2]
[396429931,1764964355067,-3745.52,0.00020273,2]
[396429932,1764964355077,-500.0,0.00020273,2]
[396429933,1764964355088,-1761.7,0.00020273,2]
[396429934,1764964355100,-500.0,0.00020273,2]
[396429935,1764964355109,-568.61707159,0.00020273,2]
[396429936,1764964355119,-500.0,0.00020273,2]
[396429937,1764964355129,-1154.72,0.00020273,2]
[396429938,1764964355138,-8082.89,0.00020273,2]
[396429939,1764964355148,-1316.55,0.00020273,2]
[396429940,1764964355158,-1061.67,0.00020273,2]
[396429941,1764964355167,-1179.67,0.00020273,2]
[396429942,1764964355176,-808.12,0.00020273,2]
[396429943,1764964355186,-500.0,0.00020273,2]
[396429944,1764964355197,-500.0,0.00020273,2]
[396429945,1764964355206,-548.83,0.00020273,2]
[396429946,1764964355217,-2735.13,0.00020273,2]
[396429947,1764964355227,-2878.01,0.00020273,2]
[396429948,1764964355236,-500.0,0.00020273,2]
[396429949,1764964355245,-6762.23,0.00020273,2]
[396429950,1764964355254,-1977.79,0.00020273,2]
[396429951,1764964355264,-500.0,0.00020273,2]
[396429952,1764964355274,-512.63,0.00020273,2]
[396429953,1764964355284,-690.27,0.00020273,2]
[396429954,1764964355293,-531.05,0.00020273,2]
[396429955,1764964355303,-588.28,0.00020273,2]
[396429956,1764964355313,-500.0,0.00020273,2]
[396429957,1764964355322,-1011.28,0.00020273,2]
[396429958,1764964355332,-6262.41,0.00020273,2]
[396429959,1764964355341,-2046.2,0.00020273,2]
[396429960,1764964355352,-2730.7,0.00020273,2]
[396429961,1764964355363,-776.59,0.00020273,2]
[396429962,1764964355373,-500.0,0.00020273,2]
[396429963,1764964355383,-632.99,0.00020273,2]
[396429964,1764964355392,-9293.72,0.00020273,2]
[396429965,1764964355402,-500.0,0.00020273,2]
[396429966,1764964355413,-1523.9,0.00020273,2]
[396429967,1764964355423,-2206.65,0.00020273,2]
[396429968,1764964355434,-1216.27,0.00020273,2]
[396429969,1764964355445,-1517.87,0.00020273,2]
[396429970,1764964355456,-890.47,0.00020273,2]
[396429971,1764964355466,-500.0,0.00020273,2]
[396429972,1764964355476,-678.08,0.00020273,2]
[396429973,1764964355486,-12607.12,0.00020273,2]
[396429974,1764964355496,-1261.52,0.00020273,2]
[396429975,1764964355506,-3411.98,0.00020273,2]
[396429976,1764964355517,-500.0,0.00020273,2]
[396429977,1764964355527,-8433.96,0.00020273,2]
[396429978,1764964355536,-500.0,0.00020273,2]
[396429979,1764964355546,-4594.16,0.00020273,2]
[396429980,1764964355555,-639.2,0.00020273,2]
[396429981,1764964355564,-601.94,0.00020273,2]
[396429982,1764964355574,-500.0,0.00020273,2]
[396429983,1764964355584,-557.9,0.00020273,2]
[396429984,1764964355593,-768.56,0.00020273,2]
[396429985,1764964355603,-564.07,0.00020273,2]
[396429986,1764964355612,-2955.98,0.00020273,2]
[396429987,1764964355622,-1537.53,0.00020273,2]
[396429988,1764964355632,-1822.27,0.00020273,2]
[396429989,1764964355642,-1145.09,0.00020273,2]
[396429990,1764964355651,-1807.2,0.00020273,2]
[396429991,1764964355661,-3671.84,0.00020273,2]
[396429992,1764964355670,-1517.42,0.00020273,2]
[396429993,1764964355679,-1021.51,0.00020273,2]
[396429994,1764964355690,-500.0,0.00020273,2]
[396429995,1764964355700,-15606.7,0.00020273,2]
[396429996,1764964355710,-1718.3,0.00020273,2]
[396429997,1764964355719,-7505.89,0.00020273,2]
[396429998,1764964355729,-500.0,0.00020273,2]
[396429999,1764964355739,-629.93,0.00020273,2]
[396430000,1764964355748,-4537.01,0.00020273,2]
[396430001,1764964355757,-1160.08,0.00020273,2]
[396430002,1764964355767,-500.0,0.00020273,2]
[396430003,1764964355776,-6149.82,0.00020273,2]
[396430004,1764964355785,-2978.24,0.00020273,2]
[396430005,1764964355795,-500.0,0.00020273,2]
[396430006,1764964355804,-566.43,0.00020273,2]
[396430007,1764964355813,-1483.55,0.00020273,2]
[396430008,1764964355822,-2769.97,0.00020273,2]
[396430009,1764964355831,-1249.37,0.00020273,2]
[396430010,1764964355840,-500.0,0.00020273,2]
[396430011,1764964355850,-603.32,0.00020273,2]
[396430012,1764964355859,-500.0,0.00020273,2]
[396430013,1764964355869,-2626.61,0.00020273,2]
[396430014,1764964355879,-4802.09,0.00020273,2]
[396430015,1764964355887,-999.44,0.00020273,2]
[396430016,1764964355897,-1503.75,0.00020273,2]
[396430017,1764964355906,-500.0,0.00020273,2]
[396430018,1764964355915,-19450.21,0.00020273,2]
[396430019,1764964355925,-1573.31,0.00020273,2]
[396430020,1764964355934,-1075.02,0.00020273,2]
[396430021,1764964356236,-1106.6,0.00020273,2]
[396430022,1764964356255,-840.72,0.00020273,2]
[396430023,1764964356265,-500.0,0.00020273,2]
[396430024,1764964356275,-1613.52,0.00020273,2]
[396430025,1764964356285,-500.0,0.00020273,2]
[396430026,1764964356295,-518.4,0.00020273,2]
[396430027,1764964356304,-500.0,0.00020273,2]
[396430028,1764964356314,-3055.31,0.00020273,2]
[396430029,1764964356324,-994.67,0.00020273,2]
[396430030,1764964356333,-994.61,0.00020273,2]
[396430031,1764964356343,-5779.12,0.00020273,2]
[396430032,1764964356352,-541.54,0.00020273,2]
[396430033,1764964356362,-500.0,0.00020273,2]
[396430034,1764964356372,-2703.83,0.00020273,2]
[396430035,1764964356382,-723.64,0.00020273,2]
[396430036,1764964356392,-543.51861354,0.00020273,2]
[396430037,1764964356401,-500.0,0.00020273,2]
[396430038,1764964356411,-2375.57,0.00020273,2]
[396430039,1764964356420,-1855.42,0.00020273,2]
[396430040,1764964356430,-1108.58,0.00020273,2]
[396430041,1764964356439,-981.84,0.00020273,2]
[396430042,1764964356449,-13490.98,0.00020273,2]
[396430043,1764964356459,-500.0,0.00020273,2]
[396430044,1764964356468,-8333.33,0.00020273,2]
[396430045,1764964356477,-505.07,0.00020273,2]
[396430046,1764964356487,-3168.21,0.00020273,2]
[396430047,1764964356496,-8522.94,0.00020273,2]
[396430048,1764964356507,-500.0,0.00020273,2]
[396430049,1764964356518,-2974.3,0.00020273,2]
[396430050,1764964356528,-882.76,0.00020273,2]
[396430051,1764964356537,-500.0,0.00020273,2]
[396430052,1764964356548,-773.39,0.00020273,2]
[396430053,1764964356558,-500.0,0.00020273,2]
[396430054,1764964356569,-1466.62,0.00020273,2]
[396430055,1764964356580,-1900.64,0.00020273,2]
[396430056,1764964356590,-5166.32,0.00020273,2]
[396430057,1764964356599,-500.0,0.00020273,2]
[396430058,1764964356609,-500.0,0.00020273,2]
[396430059,1764964356618,-559.78,0.00020273,2]
[396430060,1764964356628,-500.0,0.00020273,2]
[396430061,1764964356638,-579.43,0.00020273,2]
[396430062,1764964356647,-1126.56,0.00020273,2]
[396430063,1764964356657,-531.72,0.00020273,2]
[396430064,1764964356666,-7493.2,0.00020273,2]
[396430065,1764964356676,-1357.94,0.00020273,2]
[396430066,1764964356686,-500.0,0.00020273,2]
[396430067,1764964356696,-2140.67,0.00020273,2]
[396430068,1764964356707,-504.84,0.00020273,2]
[396430069,1764964356717,-1456.29,0.00020273,2]
[396430070,1764964356727,-1852.77,0.00020273,2]
[396430071,1764964356737,-5290.3,0.00020273,2]
[396430072,1764964356747,-500.0,0.00020273,2]
[396430073,1764964356757,-18021.5,0.00020273,2]
[396430074,1764964356767,-5946.49,0.00020273,2]
[396430075,1764964356776,-1141.14,0.00020273,2]
[396430076,1764964356786,-5755.4,0.00020273,2]
[396430077,1764964356796,-899.33,0.00020273,2]
[396430078,1764964356806,-500.0,0.00020273,2]
[396430079,1764964356816,-1193.75,0.00020273,2]
[396430080,1764964356826,-500.0,0.00020273,2]
[396430081,1764964356836,-18224.67,0.00020273,2]
[396430082,1764964356845,-2555.22,0.00020273,2]
[396430083,1764964356855,-15992.22,0.00020273,2]
[396430084,1764964356865,-500.0,0.00020273,2]
[396430085,1764964356876,-500.0,0.00020273,2]
[396430086,1764964356886,-2246.86,0.00020273,2]
[396430087,1764964356897,-500.0,0.00020273,2]
[396430088,1764964356907,-1396.97,0.00020273,2]
[396430089,1764964356916,-699.92,0.00020273,2]
[396430090,1764964356926,-1327.48,0.00020273,2]
[396430091,1764964356936,-3223.39,0.00020273,2]
[396430092,1764964356946,-1347.5,0.00020273,2]